bitfinex/quotes_SOLUSD_20250506
["timestamp","ask_amount","ask_price","bid_price","bid_amount"]
[1746530181079,71.3,143.7,143.67,14.96237538]
[1746530181571,71.3,143.7,143.68,14.96237538]
[1746530182668,71.3,143.7,143.66,6.9606269]
[1746530182669,71.3,143.7,143.69,14.96237538]
[1746530183242,78.2572254,143.74,143.69,14.96237538]
[1746530183448,78.2572254,143.74,143.71,14.96237538]
[1746530183773,78.2572254,143.74,143.72,14.96237538]
[1746530183979,78.2572254,143.74,143.71,14.96237538]
[1746530185973,78.2572254,143.74,143.68,1.633]
[1746530185974,93.21960078,143.74,143.7,14.96237538]
[1746530187370,78.2572254,143.74,143.71,14.96237538]
[1746530187556,71.3,143.73,143.71,14.96237538]
[1746530187958,71.3,143.73,143.7,14.96237538]
[1746530188771,78.25765803,143.73,143.7,14.96237538]
[1746530189790,71.3,143.73,143.71,14.96237538]
[1746530189963,71.3,143.73,143.72,14.96237538]
[1746530190561,78.25673431,143.75,143.72,14.96237538]
[1746530196384,71.3,143.77,143.74,14.96237538]
[1746530196969,71.3,143.77,143.73,14.96237538]
[1746530197287,14.96237538,143.76,143.72,14.96237538]
[1746530197986,93.21811303,143.77,143.72,14.96237538]
[1746530199493,71.3,143.76,143.72,14.96237538]
[1746530200994,6.95652173,143.75,143.72,14.96237538]
[1746530202372,6.95652173,143.75,143.71,14.96237538]
[1746530202571,71.3,143.74,143.71,14.96237538]
[1746530202971,71.3,143.73,143.71,14.96237538]
[1746530203181,71.3,143.73,143.7,28.76237538]
[1746530204392,6.95797383,143.72,143.7,13.8]
[1746530207107,6.95797383,143.72,143.69,40.96237538]
[1746530209306,6.95797383,143.72,143.69,14.96237538]
[1746530209610,14.96237538,143.7,143.67,13.78]
[1746530209993,14.96237538,143.7,143.66,14.96237538]
[1746530210194,71.3,143.71,143.68,14.96237538]
[1746530210599,86.26237538,143.71,143.67,14.96237538]
[1746530211109,71.3,143.71,143.67,14.96237538]
[1746530211710,78.2585179,143.71,143.67,14.96237538]
[1746530212812,78.2585179,143.71,143.67,21.92276567]
[1746530213188,71.3,143.71,143.68,14.96237538]
[1746530214288,78.25851102,143.71,143.68,14.96237538]
[1746530214495,71.3,143.7,143.68,14.96237538]
[1746530215615,71.3,143.7,143.67,14.96237538]
[1746530216916,71.3,143.7,143.67,21.92270936]
[1746530218718,71.3,143.7,143.67,14.96237538]
[1746530220312,93.221547,143.7,143.65,47.92349534]
[1746530220517,86.26237538,143.69,143.64,16.47647538]
[1746530220712,21.92294844,143.67,143.63,39.78]
[1746530220920,86.26237538,143.66,143.63,13.78]
[1746530221099,71.3,143.65,143.63,13.78]
[1746530222333,71.3,143.64,143.61,40.96237538]
[1746530223216,71.3,143.63,143.6,14.96237538]
[1746530223425,86.26237538,143.63,143.59,20.76415037]
[1746530223715,86.26237538,143.63,143.59,35.72652575]
[1746530224298,71.3,143.63,143.6,14.96237538]
[1746530226505,71.3,143.62,143.6,14.96237538]
[1746530227023,71.3,143.62,143.6,21.92615036]
[1746530227926,71.3,143.62,143.61,14.96237538]
[1746530228531,71.3,143.62,143.61,21.92567877]
[1746530228704,71.3,143.62,143.61,47.92567877]
[1746530228902,71.3,143.62,143.61,66.57532763]
[1746530229130,40.96237538,143.69,143.62,18.64964886]
[1746530229131,71.3,143.67,143.62,18.64964886]
[1746530229427,71.3,143.67,143.66,14.96237538]
[1746530230004,71.3,143.67,143.65,14.96237538]
[1746530230513,71.3,143.67,143.65,21.92373343]
[1746530230713,71.3,143.67,143.65,14.96237538]
[1746530234235,78.26040042,143.67,143.65,14.96237538]
[1746530235211,71.3,143.67,143.65,14.96237538]
[1746530238022,71.3,143.67,143.64,14.96237538]
[1746530238923,71.3,143.67,143.65,14.96237538]
[1746530239637,71.3,143.67,143.65,21.92365985]
[1746530239844,71.3,143.67,143.66,14.96237538]
[1746530242527,71.3,143.67,143.65,14.96237538]
[1746530243544,78.26042698,143.67,143.65,14.96237538]
[1746530243928,78.26042698,143.67,143.64,14.96237538]
[1746530248020,78.26042698,143.67,143.63,28.74237538]
[1746530248244,71.3,143.66,143.63,13.78]
[1746530249145,71.3,143.66,143.62,14.96237538]
[1746530249146,78.26136442,143.65,143.62,14.96237538]
[1746530249527,78.26136442,143.65,143.61,40.96237538]
[1746530250345,78.26136442,143.65,143.61,14.96237538]
[1746530250538,93.2237398,143.65,143.6,14.96237538]
[1746530250740,71.3,143.64,143.6,14.96237538]
[1746530251140,71.3,143.64,143.61,14.96237538]
[1746530252551,78.26186551,143.64,143.61,14.96237538]
[1746530252737,71.3,143.64,143.62,14.96237538]
[1746530255950,71.3,143.64,143.59,39.78]
[1746530255951,78.26189033,143.64,143.61,14.96237538]
[1746530256329,71.3,143.63,143.61,14.96237538]
[1746530256952,78.26250286,143.63,143.59,46.744045]
[1746530257157,78.26250286,143.63,143.6,14.96237538]
[1746530258339,78.26250286,143.63,143.59,28.74237538]
[1746530259657,71.3,143.62,143.59,28.74237538]
[1746530259858,71.3,143.62,143.6,14.96237538]
[1746530260661,78.26308565,143.62,143.6,14.96237538]
[1746530261558,78.26308565,143.62,143.61,14.96237538]
[1746530261559,71.3,143.62,143.61,14.96237538]
[1746530262463,71.3,143.62,143.59,13.78]
[1746530262639,71.3,143.62,143.61,14.96237538]
[1746530271541,78.26220508,143.64,143.61,14.96237538]
[1746530271757,78.26220508,143.64,143.62,14.96237538]
[1746530272263,78.26220508,143.64,143.61,14.96237538]
[1746530273565,78.26220508,143.64,143.6,14.96237538]
[1746530273867,93.22458046,143.64,143.6,14.96237538]
[1746530274767,78.26220508,143.64,143.61,14.96237538]
[1746530277469,6.96281854,143.62,143.61,14.96237538]
[1746530278568,78.26252453,143.63,143.61,14.96237538]
[1746530278748,71.3,143.63,143.62,14.96237538]
[1746530278948,78.26233377,143.63,143.62,14.96237538]
[1746530281661,71.3,143.63,143.62,14.96237538]
[1746530282773,78.26233377,143.63,143.62,14.96237538]
[1746530284261,78.26233377,143.63,143.61,14.96237538]
[1746530287857,78.26233377,143.63,143.61,9.57965308]
[1746530288766,71.3,143.63,143.61,9.57965308]
[1746530289873,78.26239369,143.63,143.61,9.57965308]
[1746530291990,71.3,143.63,143.61,9.57965308]
[1746530292486,71.3,143.63,143.62,9.57965308]
[1746530294181,71.3,143.68,143.62,35.19212048]
[1746530294476,71.3,143.67,143.66,9.57965308]
[1746530295567,71.3,143.67,143.65,9.57965308]
[1746530296785,71.3,143.67,143.66,9.57965308]
[1746530297575,71.3,143.7,143.66,16.54052431]
[1746530297774,71.3,143.7,143.68,9.57965308]
[1746530299583,71.3,143.7,143.69,9.57965308]
[1746530299785,71.3,143.7,143.69,14.94975807]
[1746530303078,71.3,143.73,143.69,35.64918384]
[1746530303278,71.3,143.73,143.71,14.94975807]
[1746530303486,71.3,143.73,143.72,14.94975807]
[1746530304875,71.3,143.75,143.72,21.90772304]
[1746530305073,71.3,143.75,143.74,14.94975807]
[1746530305274,6.95604281,143.76,143.73,14.94975807]
[1746530305488,78.25604281,143.76,143.73,14.94975807]
[1746530306296,93.20580088,143.76,143.72,14.94975807]
[1746530306492,14.94975807,143.74,143.69,39.74]
[1746530306674,86.24975807,143.73,143.69,28.68975807]
[1746530308004,6.95797383,143.72,143.69,28.68975807]
[1746530308674,6.95797383,143.72,143.7,14.94975807]
[1746530309282,71.3,143.73,143.7,14.94975807]
[1746530309283,78.25767824,143.73,143.7,14.94975807]
[1746530310502,71.3,143.72,143.7,14.94975807]
[1746530313806,78.25810589,143.72,143.7,14.94975807]
[1746530314104,78.25810589,143.72,143.69,28.68975807]
[1746530314284,71.3,143.72,143.69,28.68975807]
[1746530314480,71.3,143.72,143.7,14.94975807]
[1746530315075,71.3,143.72,143.71,14.94975807]
[1746530316082,71.3,143.77,143.71,48.549165]
[1746530316302,71.3,143.76,143.75,14.94975807]
[1746530316891,71.3,143.78,143.75,21.90612036]
[1746530317098,143.45442281,143.8,143.75,21.90612036]
[1746530317099,6.95442281,143.8,143.77,14.94975807]
[1746530317297,71.3,143.79,143.78,14.94975807]
[1746530318810,6.95385415,143.81,143.78,14.94975807]
[1746530319017,6.95385415,143.81,143.79,14.94975807]
[1746530319595,6.95385415,143.81,143.78,14.94975807]
[1746530319798,71.3,143.82,143.8,14.94975807]
[1746530320000,71.3,143.82,143.81,14.94975807]
[1746530321914,6.95185251,143.85,143.81,33.59940693]
[1746530322214,6.95071939,143.87,143.84,14.94975807]
[1746530322400,71.3,143.86,143.84,14.94975807]
[1746530322710,71.3,143.86,143.83,14.94975807]
[1746530322892,6.95168578,143.85,143.83,14.94975807]
[1746530323321,6.95168578,143.85,143.82,14.94975807]
[1746530324014,6.95168578,143.85,143.83,14.94975807]
[1746530324214,6.95168578,143.85,143.84,14.94975807]
[1746530324415,6.95168578,143.85,143.83,14.94975807]
[1746530325608,78.25168578,143.85,143.83,14.94975807]
[1746530325921,78.25168578,143.85,143.84,14.94975807]
[1746530326123,71.3,143.85,143.84,14.94975807]
[1746530327695,78.25168578,143.85,143.82,14.94975807]
[1746530329110,78.25168578,143.85,143.8,32.95410157]
[1746530329319,78.25168578,143.85,143.83,14.94975807]
[1746530330521,78.25168578,143.85,143.84,14.94975807]
[1746530331708,78.25168578,143.85,143.83,14.94975807]
[1746530332113,78.25168578,143.85,143.8,32.95388091]
[1746530332114,78.25168578,143.85,143.8,26.0]
[1746530332421,71.3,143.84,143.82,14.94975807]
[1746530332627,71.3,143.84,143.83,14.94975807]
[1746530332998,71.3,143.84,143.8,26.0]
[1746530332999,71.3,143.84,143.82,14.94975807]
[1746530333195,86.24975807,143.84,143.8,14.94975807]
[1746530333422,6.95313586,143.82,143.8,14.94975807]
[1746530334527,6.95313586,143.82,143.79,13.72]
[1746530334528,71.3,143.81,143.79,13.72]
[1746530335032,71.3,143.81,143.78,14.94975807]
[1746530335333,6.95410292,143.8,143.78,14.94975807]
[1746530336326,6.95410292,143.8,143.77,14.94975807]
[1746530336711,6.95410292,143.8,143.78,14.94975807]
[1746530337735,6.95410292,143.8,143.77,14.94975807]
[1746530337934,6.95410292,143.8,143.76,26.0]
[1746530338227,78.25410292,143.8,143.77,14.94975807]
[1746530338933,78.25410292,143.8,143.78,14.94975807]
[1746530340724,78.25410292,143.8,143.77,14.94975807]
[1746530341427,78.25410292,143.8,143.76,26.0]
[1746530341638,78.25410292,143.8,143.77,14.94975807]
[1746530342145,71.3,143.79,143.76,14.94975807]
[1746530342325,86.24975807,143.79,143.75,28.66975807]
[1746530343027,71.3,143.79,143.76,14.94975807]
[1746530343555,6.95507024,143.78,143.76,14.94975807]
[1746530343726,71.3,143.77,143.75,13.72]
[1746530343915,71.3,143.77,143.7,18.64964886]
[1746530343916,71.3,143.76,143.73,14.94975807]
[1746530344817,71.3,143.76,143.74,14.94975807]
[1746530345014,78.25605541,143.76,143.74,14.94975807]
[1746530346341,78.25605541,143.76,143.71,46.67810519]
[1746530346532,71.3,143.75,143.73,14.94975807]
[1746530346933,71.3,143.75,143.74,14.94975807]
[1746530350246,78.25652173,143.75,143.74,14.94975807]
[1746530350844,71.3,143.75,143.74,14.94975807]
[1746530354847,78.25653795,143.75,143.73,14.94975807]
[1746530355436,71.3,143.75,143.73,14.94975807]
[1746530355728,71.3,143.75,143.74,14.94975807]
[1746530358757,78.25652173,143.75,143.73,14.94975807]
[1746530359521,71.3,143.75,143.73,14.94975807]
[1746530359925,78.25656115,143.75,143.73,14.94975807]
[1746530360125,78.25656115,143.75,143.72,14.94975807]
[1746530360353,78.25656115,143.75,143.71,28.66975807]
[1746530360354,93.20631922,143.75,143.71,28.66975807]
[1746530360548,71.3,143.74,143.71,28.66975807]
[1746530360730,71.3,143.74,143.72,14.94975807]
[1746530362250,78.25721881,143.74,143.72,14.94975807]
[1746530362656,78.25721881,143.74,143.71,13.72]
[1746530363246,78.25721881,143.74,143.71,28.66975807]
[1746530364050,78.25721881,143.74,143.71,13.72]
[1746530364255,93.20697688,143.74,143.71,13.72]
[1746530364449,78.25766946,143.73,143.71,13.72]
[1746530364656,78.25766946,143.73,143.71,28.66975807]
[1746530365654,71.3,143.73,143.71,28.66975807]
[1746530365955,71.3,143.73,143.72,14.94975807]
[1746530367730,78.25748973,143.73,143.72,14.94975807]
[1746530370071,78.25748973,143.73,143.71,13.72]
[1746530370238,78.25748973,143.73,143.71,28.66975807]
[1746530374373,78.25748973,143.73,143.71,13.72]
[1746530374660,78.25748973,143.73,143.71,28.66975807]
[1746530378275,78.25748973,143.73,143.71,14.94975807]
[1746530378653,78.25748973,143.73,143.7,14.94975807]
[1746530378848,78.25748973,143.73,143.69,14.94975807]
[1746530381785,78.25748973,143.73,143.7,14.94975807]
[1746530382563,78.25806819,143.72,143.7,14.94975807]
[1746530385776,71.3,143.72,143.7,14.94975807]
[1746530387795,78.25802856,143.72,143.7,14.94975807]
[1746530391715,78.25802856,143.72,143.7,9.56731027]
[1746530396711,78.25805454,143.72,143.7,9.56731027]
[1746530401102,78.25805454,143.72,143.69,9.56731027]
[1746530405318,78.25805454,143.72,143.68,39.72]
[1746530405505,78.25805454,143.72,143.69,9.56731027]
[1746530406515,71.3,143.71,143.69,9.56731027]
[1746530409720,71.3,143.71,143.69,16.52671071]
[1746530409908,71.3,143.71,143.7,9.56731027]
[1746530411522,71.3,143.71,143.7,16.52625251]
[1746530411815,71.3,143.71,143.7,16.02625251]
[1746530412520,71.3,143.73,143.7,16.02625251]
[1746530413518,71.3,143.73,143.7,9.06731027]
[1746530413710,71.3,143.73,143.69,9.56731027]
[1746530414822,78.25753807,143.73,143.69,16.52656033]
[1746530415119,78.25753807,143.73,143.69,9.56731027]
[1746530416024,78.25753807,143.73,143.69,16.52672305]
[1746530418319,78.25753807,143.73,143.7,9.56731027]
[1746530418623,71.3,143.73,143.7,9.56731027]
[1746530419020,71.3,143.73,143.7,16.5262271]
[1746530419428,71.3,143.73,143.71,9.56731027]
[1746530420632,78.25774679,143.73,143.71,9.56731027]
[1746530421123,78.25774679,143.73,143.7,9.56731027]
[1746530421710,71.3,143.73,143.71,9.56731027]
[1746530422103,71.3,143.73,143.68,32.95953449]
[1746530422304,71.3,143.73,143.71,9.56731027]
[1746530424737,71.3,143.73,143.72,9.56731027]
[1746530429635,71.3,143.76,143.72,16.5252841]
[1746530429848,87.82339209,143.76,143.72,9.56731027]
[1746530430719,87.82339209,143.76,143.71,9.56731027]
[1746530433435,71.3,143.75,143.71,9.56731027]
[1746530434015,78.25656222,143.75,143.72,9.56731027]
[1746530442936,9.56731027,143.74,143.69,13.7]
[1746530443235,80.86731027,143.73,143.69,23.26731027]
[1746530443643,71.3,143.73,143.69,23.26731027]
[1746530444348,6.95797383,143.72,143.7,9.56731027]
[1746530444647,78.25770772,143.73,143.7,9.56731027]
[1746530445633,78.25770772,143.73,143.69,13.7]
[1746530445821,78.25770772,143.73,143.7,9.56731027]
[1746530448645,71.3,143.73,143.7,9.56731027]
[1746530448833,71.3,143.73,143.71,9.56731027]
[1746530450442,71.3,143.73,143.72,9.56731027]
[1746530450636,71.3,143.76,143.72,9.56731027]
[1746530450829,146.06731027,143.77,143.73,9.56731027]
[1746530450830,71.3,143.75,143.73,9.56731027]
[1746530452148,78.25654981,143.75,143.73,9.56731027]
[1746530452852,78.25654981,143.75,143.72,9.56731027]
[1746530457552,71.3,143.75,143.72,16.52512214]
[1746530457754,71.3,143.75,143.73,9.56731027]
[1746530460259,78.25662062,143.75,143.72,9.56731027]
[1746530465659,78.25662062,143.75,143.71,9.56731027]
[1746530467259,80.86731027,143.74,143.69,23.26731027]
[1746530467458,80.86731027,143.73,143.69,23.26731027]
[1746530467848,80.86731027,143.73,143.69,13.7]
[1746530468061,9.56731027,143.71,143.69,13.7]
[1746530468250,71.3,143.7,143.69,13.7]
[1746530468455,71.3,143.7,143.69,9.56731027]
[1746530469651,71.3,143.73,143.69,9.56731027]
[1746530469853,71.3,143.73,143.71,9.56731027]
[1746530473070,71.3,143.73,143.72,9.56731027]
[1746530474678,71.3,143.78,143.72,9.56731027]
[1746530474878,71.3,143.79,143.76,9.56731027]
[1746530475179,71.3,143.78,143.76,9.56731027]
[1746530478571,71.3,143.77,143.76,9.56731027]
[1746530482678,70.73511005,143.77,143.76,9.56731027]
[1746530482874,70.73511005,143.77,143.76,16.52334811]
[1746530483877,70.33511005,143.81,143.76,16.52334811]
[1746530484179,70.33511005,143.81,143.78,9.56731027]
[1746530485884,77.28884697,143.81,143.78,9.56731027]
[1746530487482,70.33511005,143.8,143.78,9.56731027]
[1746530488491,70.33511005,143.8,143.77,9.56731027]
[1746530489182,77.28924627,143.8,143.77,9.56731027]
[1746530492186,86.85655654,143.8,143.74,27.5458]
[1746530492391,86.85655654,143.8,143.75,9.56731027]
[1746530492392,9.56731027,143.79,143.75,9.56731027]
[1746530493582,70.33511005,143.78,143.75,9.56731027]
[1746530494184,6.955554,143.77,143.75,9.56731027]
[1746530494692,77.29039152,143.78,143.75,9.56731027]
[1746530495088,70.33511005,143.78,143.76,9.56731027]
[1746530495590,77.29027336,143.78,143.76,9.56731027]
[1746530495894,70.33511005,143.78,143.76,9.56731027]
[1746530500303,70.33511005,143.78,143.76,9.56731027]
[1746530501498,70.33511005,143.78,143.74,32.95697545]
[1746530501799,70.33511005,143.78,143.76,9.56731027]
[1746530502097,77.29024107,143.78,143.76,9.56731027]
[1746530505396,70.33511005,143.78,143.76,9.56731027]
[1746530506494,77.29033273,143.78,143.76,9.56731027]
[1746530510185,77.29033273,143.78,143.75,9.56731027]
[1746530512704,77.29033273,143.78,143.76,9.56731027]
[1746530513196,77.29033273,143.78,143.73,46.6372505]
[1746530513381,77.29033273,143.78,143.76,9.56731027]
[1746530513575,77.29033273,143.78,143.73,46.6372505]
[1746530513878,77.29033273,143.78,143.76,9.56731027]
[1746530527593,86.857643,143.78,143.73,13.68]
[1746530527908,70.33511005,143.77,143.74,9.56731027]
[1746530530036,77.29080541,143.77,143.74,9.56731027]
[1746530530633,77.29080541,143.77,143.73,9.56731027]
[1746530531718,77.29080541,143.77,143.72,6.95779122]
[1746530531899,77.29080541,143.77,143.73,9.56731027]
[1746530535014,77.29080541,143.77,143.71,46.61826074]
[1746530535015,70.33511005,143.76,143.71,39.66]
[1746530535200,79.90242032,143.76,143.71,49.22731027]
[1746530536731,6.95652173,143.75,143.71,49.22731027]
[1746530538029,6.95652173,143.75,143.71,13.66]
[1746530538030,70.33511005,143.74,143.71,13.66]
[1746530538926,77.29229399,143.74,143.71,23.22731027]
[1746530539720,77.29229399,143.74,143.71,9.56731027]
[1746530539927,9.56731027,143.73,143.69,26.0]
[1746530540119,9.56731027,143.73,143.69,35.56731027]
[1746530540320,86.85960426,143.74,143.7,9.56731027]
[1746530541530,70.33511005,143.73,143.7,9.56731027]
[1746530543022,77.29277652,143.73,143.7,9.56731027]
[1746530546804,70.33511005,143.72,143.67,45.7731]
[1746530547119,70.33511005,143.72,143.68,9.56731027]
[1746530547320,77.29332074,143.72,143.69,9.56731027]
[1746530550823,70.33511005,143.72,143.7,9.56731027]
[1746530551024,70.33511005,143.72,143.71,9.56731027]
[1746530553917,70.33511005,143.76,143.71,9.56731027]
[1746530554117,70.33511005,143.78,143.75,9.56731027]
[1746530554351,70.33511005,143.78,143.77,9.56731027]
[1746530555849,70.33511005,143.78,143.76,9.56731027]
[1746530556547,70.33511005,143.78,143.77,9.56731027]
[1746530557134,6.95333897,143.82,143.77,9.56731027]
[1746530557429,77.28844902,143.82,143.79,9.56731027]
[1746530557653,70.33511005,143.82,143.81,9.56731027]
[1746530557956,70.33511005,143.84,143.81,9.56731027]
[1746530558457,77.28760535,143.84,143.81,9.56731027]
[1746530559147,86.85491562,143.84,143.8,9.56731027]
[1746530560955,77.28760535,143.84,143.8,9.56731027]
[1746530561154,86.85491562,143.84,143.8,9.56731027]
[1746530561560,77.28760535,143.84,143.8,9.56731027]
[1746530561760,86.85491562,143.84,143.8,9.56731027]
[1746530561947,86.85491562,143.84,143.77,20.59534118]
[1746530562142,77.28760535,143.84,143.81,9.56731027]
[1746530562857,70.33511005,143.84,143.79,26.0]
[1746530563056,70.33511005,143.84,143.83,9.56731027]
[1746530563453,6.95141596,143.86,143.83,9.56731027]
[1746530563659,6.95141596,143.86,143.84,9.56731027]
[1746530565061,6.95141596,143.86,143.83,9.56731027]
[1746530565762,6.95141596,143.86,143.83,14.92167808]
[1746530567165,6.95141596,143.86,143.84,14.92167808]
[1746530569250,6.95141596,143.86,143.83,14.92167808]
[1746530570061,6.95141596,143.86,143.81,6.95360734]
[1746530570373,6.95141596,143.86,143.83,14.92167808]
[1746530572574,6.95141596,143.86,143.8,27.19180584]
[1746530572749,6.95141596,143.86,143.83,14.92167808]
[1746530575778,14.92167808,143.85,143.81,13.62]
[1746530575976,14.92167808,143.85,143.81,28.54167808]
[1746530576466,39.25110043,143.86,143.82,14.92167808]
[1746530577475,39.25110043,143.86,143.81,13.62]
[1746530577679,14.92167808,143.85,143.81,28.54167808]
[1746530578578,6.95216907,143.84,143.81,13.62]
[1746530578762,6.95216907,143.84,143.81,28.54167808]
[1746530580249,6.95216907,143.84,143.81,13.62]
[1746530582582,21.87384715,143.84,143.81,13.62]
[1746530583876,6.95216907,143.84,143.81,13.62]
[1746530586582,6.95216907,143.84,143.81,28.54167808]
[1746530587970,6.95216907,143.84,143.81,23.17258997]
[1746530589474,6.95216907,143.84,143.81,9.55258997]
[1746530592258,6.95216907,143.84,143.79,39.62]
[1746530592459,6.95216907,143.84,143.81,9.55258997]
[1746530592777,104.22029178,143.84,143.77,8.0652]
[1746530592982,9.55258997,143.79,143.73,7.911]
[1746530593161,9.55258997,143.79,143.74,9.55258997]
[1746530593361,78.74598432,143.82,143.73,33.911]
[1746530593575,6.95507024,143.78,143.73,33.911]
[1746530593783,6.95507024,143.78,143.74,9.55258997]
[1746530593976,6.95430244,143.8,143.77,9.55258997]
[1746530594171,9.55258997,143.8,143.73,40.86844877]
[1746530594490,77.28891036,143.81,143.78,9.55258997]
[1746530595390,86.84150033,143.81,143.77,9.55258997]
[1746530595566,9.55258997,143.8,143.76,9.55258997]
[1746530595885,86.84150033,143.81,143.77,9.55258997]
[1746530596085,70.33511005,143.81,143.78,9.55258997]
[1746530596883,70.33511005,143.83,143.8,9.55258997]
[1746530597189,70.33511005,143.83,143.81,9.55258997]
[1746530597376,77.28788189,143.83,143.79,9.55258997]
[1746530597574,77.2869975,143.85,143.81,9.55258997]
[1746530597782,70.33511005,143.85,143.84,9.55258997]
[1746530598289,70.33511005,143.85,143.83,9.55258997]
[1746530598586,70.33511005,143.85,143.82,9.55258997]
[1746530598782,86.8393858,143.85,143.81,13.62]
[1746530598985,9.55258997,143.84,143.81,13.62]
[1746530599160,9.55258997,143.83,143.81,13.62]
[1746530599361,94.66601028,143.85,143.81,13.62]
[1746530599362,9.55258997,143.84,143.81,13.62]
[1746530599761,6.95265243,143.83,143.8,14.9279931]
[1746530599985,21.88064553,143.83,143.77,39.62]
[1746530600185,21.88064553,143.83,143.79,14.9279931]
[1746530602174,6.95265243,143.83,143.79,14.9279931]
[1746530602581,21.88064553,143.83,143.79,14.9279931]
[1746530603300,6.95265243,143.83,143.79,14.9279931]
[1746530603482,6.95265243,143.83,143.78,6.95506559]
[1746530603682,6.95265243,143.83,143.79,14.9279931]
[1746530605310,70.33511005,143.84,143.8,14.9279931]
[1746530605471,70.33511005,143.84,143.81,14.9279931]
[1746530605675,77.28740706,143.84,143.81,14.9279931]
[1746530605885,77.28740706,143.84,143.8,14.9279931]
[1746530607373,92.21540016,143.84,143.79,14.9279931]
[1746530607574,14.9279931,143.83,143.79,14.9279931]
[1746530607799,14.9279931,143.82,143.78,14.9279931]
[1746530608180,14.9279931,143.81,143.77,39.62]
[1746530608510,14.9279931,143.8,143.77,13.62]
[1746530608708,14.9279931,143.79,143.77,13.62]
[1746530609007,6.95507024,143.78,143.75,14.9279931]
[1746530609679,6.95481917,143.79,143.75,14.9279931]
[1746530609881,92.21738826,143.8,143.76,14.9279931]
[1746530610192,85.26310315,143.8,143.76,14.9279931]
[1746530611205,77.28931693,143.8,143.76,14.9279931]
[1746530612677,77.28931693,143.8,143.76,21.88390977]
[1746530613897,70.33511005,143.8,143.77,14.9279931]
[1746530614998,77.28927967,143.8,143.77,14.9279931]
[1746530616695,14.9279931,143.78,143.73,39.62]
[1746530616907,85.26310315,143.79,143.74,14.9279931]
[1746530617779,6.95507024,143.78,143.74,14.9279931]
[1746530618504,6.95507024,143.78,143.75,14.9279931]
[1746530619003,6.95507024,143.78,143.74,14.9279931]
[1746530619184,77.28988098,143.79,143.76,14.9279931]
[1746530620198,77.28988098,143.79,143.75,14.9279931]
[1746530620382,92.21787408,143.79,143.75,14.9279931]
[1746530620591,92.21787408,143.79,143.73,39.62]
[1746530620790,14.9279931,143.78,143.73,39.62]
[1746530620999,14.9279931,143.78,143.74,14.9279931]
[1746530621186,85.26310315,143.78,143.74,14.9279931]
[1746530621597,70.33511005,143.78,143.75,14.9279931]
[1746530621884,77.29036816,143.78,143.75,14.9279931]
[1746530622603,92.21836126,143.78,143.74,14.9279931]
[1746530625407,92.21836126,143.78,143.73,54.5479931]
[1746530625611,14.9279931,143.77,143.73,13.62]
[1746530625790,14.9279931,143.76,143.73,13.62]
[1746530626118,6.95652173,143.75,143.73,13.62]
[1746530627909,6.95652173,143.75,143.71,14.9279931]
[1746530630103,14.9279931,143.75,143.71,14.9279931]
[1746530630295,14.9279931,143.75,143.7,32.95893375]
[1746530630495,85.26310315,143.75,143.71,14.9279931]
[1746530630701,70.33511005,143.75,143.72,14.9279931]
[1746530630994,70.33511005,143.75,143.73,14.9279931]
[1746530631200,70.33511005,143.75,143.74,14.9279931]
[1746530631590,70.33511005,143.75,143.73,14.9279931]
[1746530634506,6.95626405,143.76,143.73,14.9279931]
[1746530637220,6.95626405,143.76,143.72,14.9279931]
[1746530637592,6.95626405,143.76,143.73,14.9279931]
[1746530640297,6.95578541,143.77,143.73,14.9279931]
[1746530641617,6.95578541,143.77,143.74,14.9279931]
[1746530642422,6.95527161,143.78,143.74,14.9279931]
[1746530642613,77.29038166,143.78,143.74,14.9279931]
[1746530642919,92.21837476,143.78,143.72,8.57728415]
[1746530643311,92.21837476,143.78,143.73,14.9279931]
[1746530643506,14.9279931,143.77,143.71,13.33947239]
[1746530643714,85.26310315,143.77,143.72,14.9279931]
[1746530644321,6.95603784,143.76,143.72,14.9279931]
[1746530644626,6.95603784,143.76,143.73,14.9279931]
[1746530645209,6.95603784,143.76,143.71,26.97947239]
[1746530645415,6.95603784,143.76,143.73,14.9279931]
[1746530645615,6.95603784,143.76,143.72,14.9279931]
[1746530647826,6.95603784,143.76,143.71,26.97947239]
[1746530648126,21.88403094,143.76,143.71,13.64]
[1746530648324,21.88403094,143.76,143.72,14.9279931]
[1746530648824,6.95603784,143.76,143.72,14.9279931]
[1746530649424,77.29114789,143.76,143.72,14.9279931]
[1746530650126,77.29114789,143.76,143.71,13.64]
[1746530650319,92.21914099,143.76,143.72,14.9279931]